Cogmind - Beta 11 @@@ ROGUE MODE // 2022.04.15 @ 00:32:41 Player: ktur Result: Destroyed by as-21633 with Assembled Maul Performance ------------- Evolutions (0) 0 Regions Visited (2) 400 Robots Destroyed (16) 80 Value Destroyed (472) 472 Prototype IDs (1) 20 Alien Tech Used (0) 0 Bonus (0) 0 TOTAL SCORE: 972 Bonus ------- None Cogmind --------- Core Integrity 0/250 Matter 242/300 Energy 100/100 System Corruption 0% Temperature Cool (0) Movement Treading (240) Ox1 Location -10/Mines Parts ------- > --- POWER (1) -------- (None) > --- PROPULSION (2) --- Light Treads Light Treads > --- UTILITY (2) ------ High-capacity Storage Unit Hardened Light Armor Plating > --- WEAPON (2) ------- Light Assault Rifle > --- INVENTORY (20) --- Light Nuclear Core Light Treads Flight Unit Medium Storage Unit Large Storage Unit Large Storage Unit Sensor Array Terrain Scanner Hardened Light Armor Plating Hacking Suite Hacking Suite Peak State ------------ > --- POWER ------------ Light Ion Engine > --- PROPULSION ------- Light Treads Light Treads > --- UTILITY ---------- Small Storage Unit Hardened Light Armor Plating > --- WEAPON ----------- Advanced Beam Cannon Advanced Beam Cannon > --- INVENTORY -------- Light Ion Engine Compact Wheel Compact Wheel Hardened Light Armor Plating Hardened Light Armor Plating Light Assault Rifle Light Assault Rifle Grenade Launcher [Rating: 13] Favorites ----------- Power Light Ion Engine Engine Light Ion Engine Propulsion Light Treads Treads Light Treads Utility Hardened Light Armor Plating Storage Medium Storage Unit Protection Hardened Light Armor Plating Weapon Light Assault Rifle Energy Cannon Advanced Beam Cannon Ballistic Gun Light Assault Rifle Launcher Grenade Launcher Build | -11 -10 -10 ------- Run | Scr Mat Min Slots Evolved . | . . . Power . | . . . Propulsion . | . . . Utility . | . . . Weapon . | . . . Parts Attached 26 | 6 12 8 Power 3 | 1 2 . Engine 3 | 1 2 . Core . | . . . Reactor . | . . . Propulsion 5 | 2 1 2 Treads 5 | 2 1 2 Leg . | . . . Wheel . | . . . Hover . | . . . Flight . | . . . Utility 6 | 1 3 2 Device . | . . . Storage 4 | 1 2 1 Processor . | . . . Hackware . | . . . Protection 2 | . 1 1 Artifact . | . . . Weapon 12 | 2 6 4 Energy Gun . | . . . Energy Cannon 2 | . 2 . Ballistic Gun 8 | 2 4 2 Ballistic Cannon . | . . . Launcher 2 | . . 2 Special Weapon . | . . . Impact Weapon . | . . . Slashing Weapon . | . . . Piercing Weapon . | . . . Special Melee Weapon . | . . . Unidentified Prototypes 1 | . 1 . Parts Lost 8 | . 1 7 Power 2 | . 1 1 Propulsion 2 | . . 2 Utility 1 | . . 1 Weapon 3 | . . 3 Highest Loss Streak 6 | . 1 6 To Critical Strikes . | . . . Average Slot Usage (%) 93 | . 94 87 Engine 9 | . 10 4 Treads 28 | . 28 28 Storage 14 | . 14 14 Protection 12 | . 12 12 Ballistic Gun 25 | . 27 18 Launcher 1 | . . 7 Naked Turns . | . . . Heaviest Build 50 | 10 30 50 Greatest Support 40 | 40 40 40 Greatest Overweight (x) 1 | . . 1 Average Overweight (x) . | . . . Largest Inventory Capacity 20 | 8 15 20 Average Capacity 12 | 7 10 18 Most Carried 16 | 6 15 16 Average Carried 10 | 3 10 12 Final Capacity 20 | 8 15 20 Final Carried 15 | 6 15 11 Class Distribution -------------------- 100% | Mutant Dominant Class ---------------- Mutant | -10/Materials Mutant | -10/Mines Resources | -11 -10 -10 ----------- Run | Scr Mat Min Matter Collected 676 | 219 339 118 Remotely . | . . . Salvage Created 524 | . 448 76 Parts 45 | . 34 11 Haulers Intercepted 1 | . 1 . Recyclers Shooed . | . . . Parts Field Recycled . | . . . Retrieved Matter . | . . . Parts Self-Destructed . | . . . Prevented . | . . . Kills | -11 -10 -10 ------- Run | Scr Mat Min Combat Hostiles Destroyed 20 | . 9 11 Guns 11 | . 9 2 AOE 9 | . . 9 Classes Destroyed 6 | . 3 3 Hauler 1 | . 1 . Operator 2 | . 2 . Swarmer 3 | . . 3 Grunt 9 | . 9 . Demolisher 1 | . . 1 Assembled 7 | . . 7 Best Kill Streak 4 | . 3 4 Combat Bots Only 4 | . 3 4 Max Kills in Single Turn 3 | . 1 3 Gunslinging . | . . . Exploded 3 | . . 3 Melee . | . . . Uniques/NPCs Destroyed . | . . . Combat | -11 -10 -10 -------- Run | Scr Mat Min Damage Taken 1677 | . 661 1016 Core 265 | . 108 157 Absorbed by Shields . | . . . Core Remaining (%) 100 | 100 . . Volleys Fired 89 | . 55 34 Largest 2 | . 2 2 Hottest 46 | . 46 40 Shots Fired 151 | . 110 41 Gun 141 | . 110 31 Cannon . | . . . Launcher 10 | . . 10 Special . | . . . Kinetic 141 | . 110 31 Thermal . | . . . Explosive 10 | . . 10 Electromagnetic . | . . . Robot Hit Streak 18 | . 14 18 Robot Miss Streak 3 | . 3 3 Penetration Max . | . . . Secondary Targets . | . . . Shots Hit Robots 104 | . 82 22 Core Hits 55 | . 32 23 Critical Kills . | . . . Critical Parts Destroyed 1 | . 1 . Critical Strikes 1 | . 1 . Destroy 1 | . 1 . Melee Attacks . | . . . Impact . | . . . Slashing . | . . . Piercing . | . . . Sneak Attacks . | . . . Combat Hostiles . | . . . Follow-up Attacks . | . . . Damage Inflicted 1502 | . 867 635 Guns 1019 | . 847 172 Cannons . | . . . Explosions 463 | . . 463 Melee . | . . . Ramming 20 | . 20 . Kinetic 1019 | . 847 172 Thermal . | . . . Explosive 463 | . . 463 Electromagnetic . | . . . Impact . | . . . Slashing . | . . . Piercing . | . . . Highest Corruption . | . . . Average Corruption . | . . . Corruption Purged . | . . . Corruption Blocked . | . . . Overload Shots . | . . . Overflow Damage . | . . . Projectiles . | . . . Explosions . | . . . Melee . | . . . Knockbacks 1 | . 1 . Impact 1 | . 1 . Kinetic . | . . . Secondary . | . . . Self-Inflicted Damage 67 | . . 67 Shots 3 | . . 3 Rammed 7 | . 7 . Targets Rammed 7 | . 7 . Kicked . | . . . Crushed . | . . . Highest Temperature 81 | . 81 15 Average Temperature 30 | . 32 10 Received Heat Transfer 366 | . 366 . Siege Activations . | . . . Robots Corrupted . | . . . Combat Hostiles . | . . . Parts Fried . | . . . Impact Corruptions . | . . . Robots Melted . | . . . Combat Hostiles . | . . . Parts Melted . | . . . Heat Transferred . | . . . Parts Sabotaged . | . . . Parts Stolen . | . . . Parts Stripped . | . . . Power Chain Reactions . | . . . Missiles Intercepted . | . . . Alert | -11 -10 -10 ------- Run | Scr Mat Min Peak Influence 188 | . 138 188 Initial 5 | . . 5 Average 43 | . 22 133 Maximum Alert Level . | . . . Low Security (%) 100 | 100 100 100 Level 1 . | . . . Level 2 . | . . . Level 3 . | . . . Level 4 . | . . . Level 5 . | . . . High Security . | . . . Max Security . | . . . Squads Dispatched 2 | . 2 . Investigation . | . . . Extermination . | . . . Reinforcement 2 | . 2 . Assault . | . . . Garrison . | . . . Intercept . | . . . Searches Triggered . | . . . Construction Impeded . | . . . Haulers Reinforced . | . . . Active Scanning Responses . | . . . Cargo Convoy Interrupts . | . . . Stealth | -11 -10 -10 --------- Run | Scr Mat Min Distress Signals 2 | . 2 . Communications Jammed . | . . . Distress Signals . | . . . Times Spotted 50 | . 29 21 Peak Tracking Total 7 | . 4 7 Tactical Retreats 1 | . . 1 Traps | -11 -10 -10 ------- Run | Scr Mat Min Traps Triggered 1 | . 1 . Indirectly . | . . . Trap Hack Attempts . | . . . Triggered . | . . . Disarmed . | . . . Reprogrammed . | . . . Reused . | . . . Traps Extracted . | . . . Installed . | . . . Triggered . | . . . Machines | -11 -10 -10 ---------- Run | Scr Mat Min Machines Disabled 1 | . . 1 Max in Single Turn 1 | . . 1 Machines Sabotaged . | . . . Garrisons Compromised . | . . . Overloaded Fab Kills . | . . . Hacking | -11 -10 -10 --------- Run | Scr Mat Min Machines Accessed 9 | . 9 . Terminals 6 | . 6 . Fabricators . | . . . Repair Stations 1 | . 1 . Recycling Units 2 | . 2 . Scanalyzers . | . . . Garrison Access . | . . . Total Hacks 23 | . 23 . Successful 9 | . 9 . Failed 14 | . 14 . Catastrophic 3 | . 3 . Database Lockouts . | . . . Manual 17 | . 17 . Terminals 17 | . 17 . Fabricators . | . . . Repair Stations 2 | . 2 . Recycling Units 4 | . 4 . Scanalyzers . | . . . Garrison Access . | . . . Terminal Hacks 5 | . 5 . Robot Analysis 2 | . 2 . Unreport Threat 2 | . 2 . Hauler Manifests 1 | . 1 . Fabricator Hacks . | . . . Repair Station Hacks . | . . . Recycling Unit Hacks 2 | . 2 . Retrieve Components 2 | . 2 . Scanalyzer . | . . . Garrison Access Hacks . | . . . Unauthorized Hacks 2 | . 2 . Terminals 2 | . 2 . Botnet 1 | . 1 . Operators 1 | . 1 . Fabricators . | . . . Repair Stations . | . . . Recycling Units . | . . . Scanalyzers . | . . . Garrison Access . | . . . Data Cores Recovered . | . . . Used . | . . . Hacking Detections 9 | . 9 . Full Trace Events . | . . . Feedback Events . | . . . Feedback Blocked . | . . . Robot Schematics Acquired . | . . . Robots Built . | . . . Authchips . | . . . Time . | . . . Total Robot Build Rating . | . . . Part Schematics Acquired . | . . . Parts Built . | . . . Authchips . | . . . Time . | . . . Total Part Build Rating . | . . . Parts Repaired . | . . . Time . | . . . Parts Recycled . | . . . Recycled Matter . | . . . Retrieved Matter . | . . . Retrieved Components 2 | . 2 . Parts Scanalyzed . | . . . Part Schematics Acquired . | . . . Parts Damaged . | . . . Bothacking | -11 -10 -10 ------------ Run | Scr Mat Min Used RIF Installer . | . . . Robots Hacked . | . . . Non-combat . | . . . Combat . | . . . Robot Hacks Applied . | . . . Relay Couplers Released . | . . . Fabnet Peak Effective % . | . . . Robots Rewired . | . . . Allies Hacked . | . . . Hacks Repelled . | . . . Allies | -11 -10 -10 -------- Run | Scr Mat Min Total Allies . | . . . Largest Group . | . . . Highest-Rated Group . | . . . Highest-Rated Ally . | . . . Total Orders . | . . . Ally Attacks . | . . . Total Damage . | . . . Kills . | . . . Allies Corrupted . | . . . Allies Melted . | . . . Intel | -11 -10 -10 ------- Run | Scr Mat Min Robot Analysis Total 2 | . 2 . Derelict Logs Recovered 1 | . . 1 Drone Launches . | . . . Drone Recoveries . | . . . Exploration | -11 -10 -10 ------------- Run | Scr Mat Min Turns Passed 1727 | 76 1311 340 Spaces Moved 836 | 46 667 123 Core 10 | 10 . . Treads 826 | 36 667 123 Legs . | . . . Wheels . | . . . Hover . | . . . Flight . | . . . Fastest Speed 50 | 50 160 160 Average Speed 165 | 136 160 208 Slowest Speed 240 | 160 160 240 Overloaded Moves . | . . . Propulsion Burnouts . | . . . Robots Hopped . | . . . Cave-ins Triggered . | . . . Exploration Rate (%) 44 | 4 95 34 Regions Visited 2 Branch Regions 1 Pre-discovered Areas . | . . . Known Exits Taken . | . . . Unknown Exits Taken 2 | 1 1 . Scrap Searched 2 | . . 2 Spaces Dug 32 | . . 32 Terrain Destroyed 83 | . . 83 Melee . | . . . Projectile . | . . . AOE 83 | . . 83 Terrain Rammed . | . . . Walls Destroyed . | . . . Machines Disabled . | . . . Actions | -11 -10 -10 --------- Run | Scr Mat Min Total 1047 | 57 818 172 Wait 43 | . 42 1 Move 834 | 45 666 123 Hop . | . . . Pick Up 27 | 6 18 3 Fast Attach 12 | 6 6 . Attach 6 | . 1 5 Detach 1 | . 1 . Swap 8 | . 5 3 Drop 19 | . 16 3 Fire 89 | . 55 34 Melee . | . . . Ram . | . . . Kick . | . . . Crush 7 | . 7 . Escape Stasis . | . . . Rewire 1 | . 1 . Trap . | . . . Miscellaneous . | . . . Route ------- -11/Scrapyard -10/Materials (discovered 5 exits: [*Mat x3] / [*Min x2]) -10/Mines History --------- Turn | Location | Event 3 | -11/Scrapyard | Discovered new exit (range 15) 77 | -11/Scrapyard | Entered Materials 306 | -10/Materials | Build established: Mutant 334 | -10/Materials | Discovered new exit (range 16) 487 | -10/Materials | Discovered new exit (range 6) 745 | -10/Materials | Discovered new exit (range 8) 960 | -10/Materials | Discovered new exit (range 8) 1160 | -10/Materials | Discovered new exit (range 16) 1388 | -10/Materials | Entered Mines 1435 | -10/Mines | Learned 4 Materials zone layouts 1468 | -10/Mines | Assembled infested the area 1473 | -10/Mines | Assisted by a Guerilla fighting off Assembled 1493 | -10/Mines | Core integrity fell below 50% 1547 | -10/Mines | Lost 6 parts (1p2n1u2w) 1702 | -10/Mines | Core integrity fell below 20% 1728 | -10/Mines | Destroyed by as-21633 with Assembled Maul Last Messages --------------- 01644_ K-01 Serf collects debris. 01646_ R-06 Scavenger collects Med. Storage Unit. 01649_ K-01 Serf collects debris. 01649_ R-06 Scavenger collects Tractor Beam. 01694_ K-01 Serf collects debris. 01696_ Searching scrap... 01696_ Found Med. Laser. 01696_ Found Lgt. Armor Plating. 01696_ Found Sml. Matter Pod. 01696_ Found Weapon Shielding. 01696_ Found 23 Matter. 01697_ Acquired 23 matter. 01701_ K-01 Serf collects debris. 01703_ as-94344 destroyed. 01706_ K-01 Serf collects debris. 01707_ as-95763 destroyed. 01710_ R-06 Scavenger destroyed. 01717_ The unstable cave ceiling collapses. 01720_ Grenade Launcher destroyed. 01728_ The unstable cave ceiling collapses. Map ----- +----------------------------------------------------+ | ?????????????????????????????????????????? | | ?????????????????????????????????????????? | | ?????????????????????????????????????????? | | ?????????????????????????????????????????? | | ?????????????????????????????????????????? | | ?????????????????????????????????????????? | | ?????????????????????????????????????????? | | ?????????????????????????????????????????? | | ?????????????????????????????????????????? | | ?????????????????????????????????????????? | | ?????????????????????????????????????????? | | ???????????????????????? ???????????????? | | ???????????????????????? ???????????????? | | ???????????????????????? ???????????????? | | ???????????????????????? ???????????????? | | ???????????????????????# ????????????????? | | ??????????????????????? ????????????????? | | ??????????????????##### ????????????????? | | ????????????????### # # ????????????????? | | ????????????????# ##???????????????? | | ????????????????# # #???????????????? | | ?????????????#### #???????????????? | | ?????????????? #???????????????? | | ?????????????????# #???????????????? | | ??????????? #?????# ##%#????????????? | | ????????? ##?????# [a@a=#????????????? | | ????????? #?????# !#####????????????? | | ?????????# #?????# #????????????????? | | ?????????? #?????# #????????????????? | | ?????????? #?????# #????????????????? | | ??????????# #???### #????????????????? | | ##????????# #??## ##???????????????? | | ###??????# #??# #???????????????? | | ##?????? #??# #???????????????? | | #?????## #??## #???????????????? | | #???### ###??## #???????????????? | | ##??# ###?# #???????????????? | | #### # # ### ######??????????? | | # # # ## ##?????????? | | # # #?????????? | | # # #### """ #?????????? | | ## ### ##?# """ #?????????? | | ?# # # #?# """ ########???? | | ?## # ##?## ### # ###?? | | ??### # ###???## ## ""##? | | ????# # #??????# # [ "#? | | ???# ### #??????# ## ! "#? | | ???#### ## #?????## ## "#? | | ???## ## #?##### "#? | | ??## ### "#? | +----------------------------------------------------+ Best States ------------- Heat Dissipation 25 Energy Generation 10 Energy Capacity 125 Matter Stores 300 Matter Capacity 300 Sight Range 16 Terrain Scan Density 10 Armor Coverage 150 Evasion (%) 50 Recoil Reduction 2 Item Schematics ----------------- None Robot Schematics ------------------ None Fabricated ------------ Nothing Alien Tech Used ----------------- None Achievements -------------- None Challenges ------------ None Game ------ Seed PhaseMomentumInjector Manual? 0 Play Time 00:11:32 Cumulative 335.0 hours Start 2022.04.15 @ 00:23:34 End 2022.04.15 @ 00:32:41 Sessions 1 Manual Loads 0 Difficulty Rogue Special Mode None Game No. 352 Rogue 352 Adventurer 0 Explorer 0 Win Type - Total 19 Types 11/2/3/2/0/0/0/1/0 Lore% 90 Gallery% 86 Achievement% 74 Wizard Run 0 Options --------- ASCII 0 Keyboard 0 Movement Arrows Keybinds 0 Fullscreen 1 Font 18/Smallcaps Map View 76x50 Tactical HUD 1 Map Filters NONE Filters NONE Steam 1 RUN: bc0a094c-3141-4647-96ee-1b12c1a76d0e